bitfinex-derivatives/quotes_BTCF0:USTF0_20250505
["timestamp","ask_amount","ask_price","bid_price","bid_amount"]
[1746451388981,0.8110493,94402.0,94401.0,0.2138515]
[1746451389684,0.8110493,94402.0,94401.0,0.002]
[1746451390675,0.8110493,94402.0,94392.0,0.0529676]
[1746451390676,0.264839,94394.0,94387.0,0.4137703]
[1746451390876,0.2118717,94392.0,94391.0,0.317808]
[1746451391278,0.2733717,94392.0,94391.0,0.317808]
[1746451392088,0.2733717,94392.0,94391.0,0.318808]
[1746451392275,0.3933717,94392.0,94391.0,0.318808]
[1746451393185,0.3933717,94392.0,94391.0,0.319808]
[1746451399887,0.3619717,94392.0,94391.0,0.319808]
[1746451400088,0.3608,94395.0,94394.0,0.2118672]
[1746451400391,0.2118612,94397.0,94396.0,0.2118627]
[1746451400993,0.2118612,94397.0,94396.0,0.2436627]
[1746451404492,0.0306,94398.0,94397.0,0.2118605]
[1746451404695,0.2424583,94398.0,94397.0,0.2440605]
[1746451408199,0.0306,94398.0,94397.0,0.2460605]
[1746451408497,0.2424583,94398.0,94397.0,0.2460605]
[1746451410400,0.2424583,94398.0,94397.0,0.2470605]
[1746451417206,0.2424583,94398.0,94397.0,0.2450605]
[1746451417506,0.2424583,94398.0,94397.0,0.2470605]
[1746451418206,0.2424583,94398.0,94397.0,0.2450605]
[1746451418505,0.2424583,94398.0,94397.0,0.2460605]
[1746451419702,0.2746583,94398.0,94397.0,0.2769605]
[1746451422307,0.2746583,94398.0,94397.0,0.2447605]
[1746451425006,0.0628,94398.0,94397.0,0.2447605]
[1746451425204,0.0306,94398.0,94397.0,0.2447605]
[1746451425404,0.2118527,94401.0,94400.0,0.2118538]
[1746451425605,0.2446527,94401.0,94400.0,0.2118538]
[1746451425812,0.2446527,94401.0,94400.0,0.2763538]
[1746451426810,0.2751527,94401.0,94400.0,0.2763538]
[1746451434506,0.0633,94401.0,94400.0,0.2763538]
[1746451434707,0.2751515,94401.0,94400.0,0.2763538]
[1746451436505,0.2751515,94401.0,94400.0,0.28677064]
[1746451436706,0.0633,94401.0,94400.0,0.2763538]
[1746451436906,0.2751515,94401.0,94400.0,0.2763538]
[1746451441116,0.2751515,94401.0,94400.0,0.2444538]
[1746451441710,0.2751515,94401.0,94400.0,0.2118538]
[1746451442203,0.3951515,94401.0,94400.0,0.2118538]
[1746451443421,0.39535553,94401.0,94400.0,0.2118538]
[1746451443914,0.211856,94399.0,94398.0,0.2648209]
[1746451444110,0.2118762,94390.0,94389.0,0.3603222]
[1746451445112,0.2732762,94390.0,94389.0,0.3603222]
[1746451446223,0.2732762,94390.0,94389.0,0.3623222]
[1746451446717,0.2732762,94390.0,94389.0,0.3633222]
[1746451446932,0.2732762,94390.0,94389.0,0.3327222]
[1746451447222,0.3932762,94390.0,94389.0,0.3317222]
[1746451447419,0.3932762,94390.0,94389.0,0.004]
[1746451447622,0.3178709,94378.0,94377.0,0.2118957]
[1746451448120,0.4358709,94378.0,94377.0,0.2118957]
[1746451448422,0.44363283,94378.0,94377.0,0.2118957]
[1746451448621,0.44163283,94378.0,94377.0,0.2118957]
[1746451449526,0.44163283,94378.0,94377.0,0.2128957]
[1746451450924,0.44263283,94378.0,94377.0,0.2128957]
[1746451455922,0.44263283,94378.0,94377.0,0.2118957]
[1746451456226,0.44363283,94378.0,94377.0,0.2118957]
[1746451456428,0.44563283,94378.0,94377.0,0.2128957]
[1746451456722,0.44463283,94378.0,94377.0,0.2128957]
[1746451456927,0.44863283,94378.0,94377.0,0.2138957]
[1746451457130,0.44963283,94378.0,94377.0,0.2138957]
[1746451459623,0.44863283,94378.0,94377.0,0.2128957]
[1746451460331,0.44963283,94378.0,94377.0,0.2128957]
[1746451460521,0.44863283,94378.0,94377.0,0.2128957]
[1746451461029,0.44463283,94378.0,94377.0,0.2128957]
[1746451461232,0.44863283,94378.0,94377.0,0.2128957]
[1746451462734,0.44863283,94378.0,94377.0,0.001]
[1746451462938,0.44863283,94378.0,94377.0,0.2129054]
[1746451463433,0.44963283,94378.0,94377.0,0.2129054]
[1746451464037,0.48013283,94378.0,94377.0,0.2129054]
[1746451464237,0.48013283,94378.0,94377.0,0.001]
[1746451464424,0.2119234,94369.0,94368.0,0.31946407]
[1746451464627,0.052983,94366.0,94362.0,0.21352221]
[1746451464929,0.2119368,94363.0,94362.0,0.26650581]
[1746451465334,0.2109368,94363.0,94362.0,0.26650581]
[1746451466127,0.3309368,94363.0,94362.0,0.26650581]
[1746451466936,0.3319368,94363.0,94362.0,0.26650581]
[1746451467338,0.3329368,94363.0,94362.0,0.26650581]
[1746451468129,0.3359368,94363.0,94362.0,0.26750581]
[1746451469128,0.3349368,94363.0,94362.0,0.26750581]
[1746451469436,0.3369368,94363.0,94362.0,0.26750581]
[1746451469928,0.3339368,94363.0,94362.0,0.26650581]
[1746451470127,0.3359368,94363.0,94362.0,0.26750581]
[1746451470636,0.3339368,94363.0,94362.0,0.26750581]
[1746451470837,0.3359368,94363.0,94362.0,0.26750581]
[1746451471228,0.2169368,94363.0,94362.0,0.26750581]
[1746451471730,0.2139368,94363.0,94362.0,0.26650581]
[1746451471935,0.2179368,94363.0,94362.0,0.26750581]
[1746451473138,0.3379368,94363.0,94362.0,0.26750581]
[1746451473434,0.3389368,94363.0,94362.0,0.26750581]
[1746451474232,0.3319368,94363.0,94362.0,0.26750581]
[1746451474437,0.3389368,94363.0,94362.0,0.26750581]
[1746451476438,0.3389368,94363.0,94362.0,0.29830581]
[1746451477144,0.2189368,94363.0,94362.0,0.29830581]
[1746451479938,0.2495368,94363.0,94362.0,0.29830581]
[1746451480538,0.2807368,94363.0,94362.0,0.29830581]
[1746451480931,0.2807368,94363.0,94362.0,0.26750581]
[1746451481533,0.2767368,94363.0,94362.0,0.26650581]
[1746451481934,0.2817368,94363.0,94362.0,0.26750581]
[1746451484339,0.2827368,94363.0,94362.0,0.26750581]
[1746451484741,0.0406,94363.0,94362.0,0.29920581]
[1746451484934,0.005,94363.0,94362.0,0.29920581]
[1746451485235,0.2219368,94363.0,94362.0,0.29820581]
[1746451485441,0.2219368,94363.0,94362.0,0.29920581]
[1746451485934,0.01,94363.0,94362.0,0.29920581]
[1746451486336,0.2219368,94363.0,94362.0,0.29920581]
[1746451487841,0.2219368,94363.0,94362.0,0.29820581]
[1746451488144,0.2219368,94363.0,94362.0,0.29920581]
[1746451488343,0.01,94363.0,94362.0,0.29920581]
[1746451489044,0.2219368,94363.0,94362.0,0.29920581]
[1746451489647,0.01,94363.0,94362.0,0.29920581]
[1746451491038,0.005,94363.0,94362.0,0.29920581]
[1746451491246,0.007,94363.0,94362.0,0.29920581]
[1746451491946,0.004,94363.0,94362.0,0.36376581]
[1746451492544,0.005,94363.0,94362.0,0.36376581]
[1746451493248,0.2169368,94363.0,94362.0,0.36376581]
[1746451493933,0.005,94363.0,94362.0,0.36376581]
[1746451494643,0.2169368,94363.0,94362.0,0.36376581]
[1746451494845,0.005,94363.0,94362.0,0.36376581]
[1746451495048,0.2169368,94363.0,94362.0,0.36376581]
[1746451498653,0.2475368,94363.0,94362.0,0.36376581]
[1746451498957,0.2806368,94363.0,94362.0,0.06714961]
[1746451499255,0.4006368,94363.0,94362.0,0.00258961]
[1746451499447,0.4006368,94363.0,94362.0,0.21452871]
[1746451500148,0.4006368,94363.0,94362.0,0.00258961]
[1746451500347,0.4006368,94363.0,94345.0,0.0529942]
[1746451500348,0.2119526,94356.0,94345.0,0.0529942]
[1746451500548,0.5727526,94356.0,94355.0,1e-08]
[1746451500746,0.9287366,94356.0,94355.0,1e-08]
[1746451500948,0.6787366,94356.0,94355.0,1e-08]
[1746451501248,0.6787366,94356.0,94355.0,0.21195481]
[1746451501249,0.8605366,94356.0,94355.0,0.21195481]
[1746451501447,0.8605366,94356.0,94355.0,1e-08]
[1746451501954,0.8635366,94356.0,94355.0,0.00100001]
[1746451502341,0.8665366,94356.0,94355.0,0.00100001]
[1746451502545,0.8635366,94356.0,94355.0,1e-08]
[1746451502745,0.8685366,94356.0,94355.0,0.00100001]
[1746451502945,0.8655366,94356.0,94355.0,0.00100001]
[1746451503147,0.8655366,94356.0,94355.0,0.00200001]
[1746451503148,0.7645526,94356.0,94355.0,0.00200001]
[1746451504455,0.7665526,94356.0,94355.0,0.00200001]
[1746451506055,0.7595526,94356.0,94355.0,0.00100001]
[1746451506256,0.7595526,94356.0,94355.0,0.00200001]
[1746451506257,0.7675526,94356.0,94355.0,0.00200001]
[1746451506549,0.7685526,94356.0,94355.0,0.00200001]
[1746451506749,0.8745366,94356.0,94355.0,0.00200001]
[1746451508450,0.8685366,94356.0,94355.0,0.00100001]
[1746451508649,0.8745366,94356.0,94355.0,0.00200001]
[1746451508852,0.8735366,94356.0,94355.0,0.00200001]
[1746451509855,0.8745366,94356.0,94355.0,0.00200001]
[1746451514759,0.7685526,94356.0,94355.0,0.00200001]
[1746451514959,0.4077526,94356.0,94355.0,0.21395481]
[1746451515160,0.2877526,94356.0,94355.0,0.21395481]
[1746451515754,0.6485526,94356.0,94355.0,0.21395481]
[1746451515955,0.2877526,94356.0,94355.0,0.21395481]
[1746451516762,0.2877526,94356.0,94355.0,0.24585481]
[1746451531160,0.2557526,94356.0,94355.0,0.24585481]
[1746451537064,0.2557526,94356.0,94355.0,0.03390001]
[1746451537871,0.2557526,94356.0,94355.0,0.27815481]
[1746451538067,0.2557526,94356.0,94355.0,0.06620001]
[1746451539364,0.2867526,94356.0,94355.0,0.27815481]
[1746451539564,0.2867526,94356.0,94355.0,0.06620001]
[1746451542078,0.6475526,94356.0,94355.0,0.06620001]
[1746451543374,0.6792526,94356.0,94355.0,0.03390001]
[1746451543571,0.2119728,94347.0,94338.0,0.0529981]
[1746451543763,0.5727728,94347.0,94343.0,0.2119806]
[1746451543967,0.5727728,94347.0,94346.0,0.00158985]
[1746451544571,0.5727728,94347.0,94346.0,0.21356485]
[1746451545163,0.6355728,94347.0,94346.0,0.21356485]
[1746451545366,0.6405728,94347.0,94346.0,0.21456485]
[1746451545566,0.6405728,94347.0,94346.0,0.21556485]
[1746451545774,0.6465728,94347.0,94346.0,0.21556485]
[1746451547074,0.6465728,94347.0,94346.0,0.00358985]
[1746451547775,0.6465728,94347.0,94346.0,0.21556485]
[1746451548077,0.6465728,94347.0,94346.0,0.24656485]
[1746451548278,0.6465728,94347.0,94346.0,0.03458985]
[1746451551075,0.6465728,94347.0,94346.0,0.24656485]
[1746451552884,0.6465728,94347.0,94346.0,0.03458985]
[1746451557283,0.2857728,94347.0,94346.0,0.03458985]
[1746451557494,0.6465728,94347.0,94346.0,0.03458985]
[1746451558883,0.6465728,94347.0,94346.0,0.24656485]
[1746451562080,0.6465728,94347.0,94346.0,0.27876485]
[1746451563492,0.6465728,94347.0,94346.0,0.30936485]
[1746451563788,0.011,94347.0,94346.0,0.30936485]
[1746451564092,0.011,94347.0,94346.0,0.42936485]
[1746451564292,0.2229728,94347.0,94346.0,0.42936485]
[1746451565989,0.2229728,94347.0,94346.0,0.440039]
[1746451566887,0.2229728,94347.0,94346.0,0.42936485]
[1746451567785,0.2538728,94347.0,94346.0,0.42936485]
[1746451570086,0.2538728,94347.0,94346.0,0.30936485]
[1746451570882,0.2538728,94347.0,94346.0,0.24656485]
[1746451572893,0.2538728,94347.0,94346.0,0.03458985]
[1746451573092,0.2538728,94347.0,94346.0,0.24656485]
[1746451574084,0.2538728,94347.0,94346.0,0.03458985]
[1746451574289,0.2538728,94347.0,94346.0,0.00358985]
[1746451578503,0.2538728,94347.0,94346.0,0.002]
[1746451579193,0.3738728,94347.0,94346.0,0.002]
[1746451580710,0.0530033,94330.0,94327.0,0.0545944]
[1746451580895,0.2120155,94328.0,94327.0,0.2666096]
[1746451581299,0.2444155,94328.0,94327.0,0.2666096]
[1746451581494,0.2444155,94328.0,94327.0,0.2136057]
[1746451581888,0.2444155,94328.0,94327.0,0.0015902]
[1746451582301,0.2524415,94328.0,94327.0,0.0015902]
[1746451583194,0.38283906,94328.0,94327.0,0.0015902]
[1746451583690,0.38483906,94328.0,94327.0,0.0025902]
[1746451584595,0.38983906,94328.0,94327.0,0.0035902]
[1746451585105,0.38483906,94328.0,94327.0,0.0025902]
[1746451585302,0.39083906,94328.0,94327.0,0.0035902]
[1746451585502,0.45543906,94328.0,94327.0,0.0035902]
[1746451585807,0.0530074,94322.0,94318.0,0.00159031]
[1746451586006,0.5728357,94319.0,94318.0,0.00159031]
[1746451587110,0.6928357,94319.0,94318.0,0.00159031]
[1746451588214,0.2120694,94304.0,94303.0,0.2452717]
[1746451589804,0.2120717,94303.0,94302.0,0.0312]
[1746451590003,0.2740717,94303.0,94302.0,0.0312]
[1746451590204,0.2740717,94303.0,94302.0,0.2432739]
[1746451591312,0.2750717,94303.0,94302.0,0.2432739]
[1746451592018,0.2760717,94303.0,94302.0,0.2442739]
[1746451592611,0.2770717,94303.0,94302.0,0.0322]
[1746451592915,0.2770717,94303.0,94302.0,0.001]
[1746451593918,0.2790717,94303.0,94302.0,0.0328]
[1746451594512,0.2740717,94303.0,94302.0,0.0318]
[1746451594805,0.2790717,94303.0,94302.0,0.001]
[1746451596313,0.3990717,94303.0,94302.0,0.001]
[1746451597216,0.7571788,94303.0,94302.0,0.001]
[1746451598016,0.7571788,94303.0,94302.0,0.2130739]
[1746451598216,0.6371788,94303.0,94302.0,0.2130739]
[1746451598419,0.6371788,94303.0,94302.0,0.0342]
[1746451598917,0.6371788,94303.0,94302.0,0.001]
[1746451600720,0.2120762,94301.0,94300.0,0.1]
[1746451600920,0.2120874,94296.0,94292.0,0.00159079]
[1746451601121,0.5728874,94296.0,94292.0,0.00159079]
[1746451601315,0.5728874,94296.0,94293.0,0.0304]
[1746451601719,0.6340874,94296.0,94293.0,0.0304]
[1746451602118,0.7600874,94296.0,94293.0,0.0304]
[1746451602529,0.2120942,94293.0,94292.0,0.00159079]
[1746451602724,0.22293407,94293.0,94292.0,0.00159079]
[1746451603126,0.34293407,94293.0,94292.0,0.00159079]
[1746451603326,0.3310942,94293.0,94292.0,0.00159079]
[1746451603522,0.2121099,94286.0,94285.0,0.0331]
[1746451603723,0.5729099,94286.0,94284.0,0.00159075]
[1746451603927,0.5729099,94286.0,94257.0,0.06615139]
[1746451603928,0.2121392,94273.0,94272.0,0.0309]
[1746451604233,0.5719392,94273.0,94272.0,0.0309]
[1746451604430,0.5719392,94273.0,94272.0,0.2430414]
[1746451604927,0.6019392,94273.0,94272.0,0.2430414]
[1746451605129,0.6029392,94273.0,94272.0,0.2430414]
[1746451605324,0.6110489,94273.0,94272.0,0.2430414]
[1746451606032,0.6110489,94273.0,94272.0,0.0309]
[1746451606332,0.6110489,94273.0,94272.0,0.2430414]
[1746451606527,0.6120489,94273.0,94272.0,0.2440414]
[1746451607321,0.6110489,94273.0,94272.0,0.2745414]
[1746451607534,0.6130489,94273.0,94272.0,0.2755414]
[1746451607830,0.6160489,94273.0,94272.0,0.2755414]
[1746451608432,0.6160489,94273.0,94272.0,0.0634]
[1746451609532,0.6160489,94273.0,94272.0,0.2755414]
[1746451610636,0.6160489,94273.0,94272.0,0.0634]
[1746451611431,0.6160489,94273.0,94272.0,0.0325]
[1746451612224,0.6160489,94273.0,94272.0,0.001]
[1746451614336,0.6160489,94273.0,94272.0,0.0318]
[1746451614536,0.6160489,94273.0,94272.0,0.2764414]
[1746451614735,0.6160489,94273.0,94272.0,0.001]
[1746451614938,0.0530372,94269.0,94257.0,0.21376469]
[1746451615136,0.2121729,94258.0,94257.0,0.26680789]
[1746451615338,0.2121729,94258.0,94257.0,0.21376469]
[1746451617134,0.2121729,94258.0,94257.0,0.33376469]
[1746451617347,0.2151729,94258.0,94257.0,0.33376469]
[1746451617840,0.2451729,94258.0,94257.0,0.12159139]
[1746451618040,0.2421729,94258.0,94257.0,0.12159139]
[1746451618248,0.2121954,94248.0,94247.0,0.0316]
[1746451618436,0.2121999,94246.0,94240.0,0.2122119]
[1746451618633,0.2121999,94246.0,94241.0,0.0303]
[1746451619141,0.2768999,94246.0,94241.0,0.0303]
[1746451620742,0.2442999,94246.0,94245.0,0.21379375]
[1746451621042,0.2452999,94246.0,94245.0,0.00159155]
[1746451621242,0.2452999,94246.0,94245.0,0.33379375]
[1746451621542,0.2482999,94246.0,94245.0,0.33379375]
[1746451621738,0.2472999,94246.0,94245.0,0.33379375]
[1746451621938,0.2492999,94246.0,94245.0,0.12159155]
[1746451622635,0.2442999,94246.0,94245.0,0.12159155]
[1746451622937,0.2492999,94246.0,94245.0,0.12159155]
[1746451623335,0.2816999,94246.0,94245.0,0.12159155]
[1746451623741,0.2816999,94246.0,94245.0,0.33379375]
[1746451624150,0.2796999,94246.0,94245.0,0.33379375]
[1746451624439,0.2786999,94246.0,94245.0,0.12159155]
[1746451624643,0.2816999,94246.0,94245.0,0.12159155]
[1746451625140,0.2492999,94246.0,94245.0,0.33379375]
[1746451625531,0.2492999,94246.0,94245.0,0.12159155]
[1746451627543,0.2492999,94246.0,94245.0,0.33379375]
[1746451628449,0.2492999,94246.0,94245.0,0.12159155]
[1746451628648,0.2492999,94246.0,94245.0,0.33379375]
[1746451629544,0.2492999,94246.0,94245.0,0.12159155]
[1746451629745,0.2492999,94246.0,94245.0,0.36649375]
[1746451631248,0.2472999,94246.0,94245.0,0.36649375]
[1746451631650,0.2512999,94246.0,94245.0,0.36649375]
[1746451632146,0.2482999,94246.0,94245.0,0.36649375]
[1746451632449,0.2512999,94246.0,94245.0,0.36649375]
[1746451634448,0.2512999,94246.0,94245.0,0.15429155]
[1746451635137,0.2482999,94246.0,94245.0,0.15429155]
[1746451635338,0.2512999,94246.0,94245.0,0.39719375]
[1746451637239,0.6120999,94246.0,94245.0,0.39719375]
[1746451638458,0.6120999,94246.0,94245.0,0.18499155]
[1746451638748,0.6451999,94246.0,94245.0,0.18499155]
[1746451640146,0.6451999,94246.0,94245.0,0.39719375]
[1746451640351,0.6120999,94246.0,94245.0,0.39719375]
[1746451640953,0.6443999,94246.0,94245.0,0.39719375]
[1746451641152,0.2835999,94246.0,94245.0,0.39719375]
[1746451641653,0.2845999,94246.0,94245.0,0.39719375]
[1746451651757,0.2855999,94246.0,94245.0,0.39719375]
[1746451652145,0.2855999,94246.0,94245.0,0.36649375]
[1746451652350,0.2855999,94246.0,94245.0,0.33379375]
[1746451653160,0.2855999,94246.0,94245.0,0.12159155]
[1746451653659,0.2855999,94246.0,94245.0,0.33379375]
[1746451654351,0.2855999,94246.0,94245.0,0.12159155]
[1746451654660,0.2855999,94246.0,94245.0,0.33379375]
[1746451655761,0.2815999,94246.0,94245.0,0.33379375]
[1746451655962,0.2855999,94246.0,94245.0,0.33379375]
[1746451656463,0.2855999,94246.0,94245.0,0.12159155]
[1746451656961,0.2815999,94246.0,94245.0,0.12159155]
[1746451657158,0.2865999,94246.0,94245.0,0.12159155]
[1746451657353,0.2865999,94246.0,94245.0,0.12]
[1746451658258,0.2815999,94246.0,94245.0,0.12]
[1746451658457,0.2865999,94246.0,94245.0,0.12]
[1746451660074,0.2865999,94246.0,94245.0,0.3322022]
[1746451660364,0.2865999,94246.0,94245.0,0.12]
[1746451664161,0.2122225,94236.0,94235.0,0.00106117]
[1746451664352,0.5730225,94236.0,94235.0,0.00106117]
[1746451664752,0.5730225,94236.0,94235.0,0.21328587]
[1746451664956,0.6350225,94236.0,94235.0,0.00106117]
[1746451665168,0.6350225,94236.0,94235.0,0.12106117]
[1746451665969,0.6380225,94236.0,94235.0,0.33328587]
[1746451666968,0.6400225,94236.0,94235.0,0.12106117]
[1746451667563,0.2122517,94223.0,94222.0,0.00159198]
[1746451667761,0.5730517,94223.0,94222.0,0.00159198]
[1746451668162,0.2122653,94217.0,94207.0,0.0530718]
[1746451668361,0.2122653,94217.0,94210.0,0.2425808]
[1746451669056,0.2439653,94217.0,94212.0,0.212276]
[1746451669259,0.2745653,94217.0,94216.0,0.12159203]
[1746451670159,0.2755653,94217.0,94216.0,0.12159203]
[1746451670564,0.25311605,94217.0,94216.0,0.33385953]
[1746451670964,0.25311605,94217.0,94216.0,0.12]
[1746451671268,0.25411605,94217.0,94216.0,0.15]
[1746451671469,0.25411605,94217.0,94216.0,0.12]
[1746451671669,0.61491605,94217.0,94216.0,0.12]
[1746451672766,0.61391605,94217.0,94216.0,0.12]
[1746451673067,0.61591605,94217.0,94216.0,0.12]
[1746451675669,0.61591605,94217.0,94216.0,0.3322675]
[1746451676867,0.61591605,94217.0,94216.0,0.12]
[1746451679266,0.21229,94206.0,94205.0,0.21335381]
[1746451679575,0.21229,94206.0,94205.0,0.00106151]
[1746451679774,0.21229,94206.0,94205.0,0.21335381]
[1746451680269,0.63469,94206.0,94205.0,0.12106151]
[1746451680467,0.63769,94206.0,94205.0,0.12106151]
[1746451680966,0.2123013,94201.0,94200.0,0.1]
[1746451681167,0.2123193,94193.0,94192.0,0.00159244]
[1746451681368,0.5731193,94193.0,94192.0,0.00159244]
[1746451681566,0.5731193,94193.0,94192.0,0.21391404]
[1746451681771,0.5731193,94193.0,94192.0,0.00159244]
[1746451682267,0.6368193,94193.0,94192.0,0.12159244]
[1746451683173,0.6378193,94193.0,94192.0,0.12159244]
[1746451683358,0.6388193,94193.0,94192.0,0.12159244]
[1746451683762,0.2474193,94193.0,94192.0,0.33391404]
[1746451683973,0.2143193,94193.0,94192.0,0.33391404]
[1746451684179,0.002,94193.0,94192.0,0.69007804]
[1746451684368,0.002,94193.0,94192.0,0.47187804]
[1746451684567,0.002,94193.0,94192.0,0.50467804]
[1746451687876,0.001,94193.0,94192.0,0.50467804]
[1746451688077,0.002,94193.0,94192.0,0.50467804]
[1746451688278,0.001,94193.0,94192.0,0.50467804]
[1746451688479,0.002,94193.0,94192.0,0.50467804]
[1746451690174,0.3608,94222.0,94200.0,0.0530756]
[1746451690380,0.2653515,94210.0,94209.0,0.212281]
[1746451691079,0.3608,94212.0,94211.0,0.2122788]
[1746451691378,0.00815075,94217.0,94216.0,0.2122675]
[1746451691571,0.0530588,94231.0,94214.0,0.0530674]
[1746451691572,0.0318,94221.0,94220.0,0.2122585]
[1746451691772,0.2440572,94221.0,94220.0,0.2122585]
[1746451691977,0.0530616,94226.0,94218.0,0.0846652]
[1746451692180,0.0318,94225.0,94221.0,0.2122562]
[1746451692385,0.573054,94222.0,94221.0,0.2122562]
[1746451692573,0.3608,94222.0,94221.0,0.2438562]
[1746451692772,0.573054,94222.0,94221.0,0.2438562]
[1746451693176,0.573054,94222.0,94221.0,0.3638562]
[1746451693780,0.212254,94222.0,94221.0,0.3638562]
[1746451694379,0.0540561,94236.0,94225.0,0.0530616]
[1746451694586,0.0540561,94236.0,94221.0,0.1516]
[1746451694587,0.2975026,94231.0,94230.0,0.212236]
[1746451695184,0.2975026,94231.0,94230.0,0.332236]
[1746451695879,0.0322,94231.0,94230.0,0.332236]
[1746451696784,0.2444337,94231.0,94230.0,0.332236]
[1746451697687,0.2624337,94231.0,94230.0,0.333236]
[1746451697980,0.2534337,94231.0,94230.0,0.333236]
[1746451698184,0.2554337,94231.0,94230.0,0.334236]
[1746451698490,0.2464337,94231.0,94230.0,0.333236]
[1746451698785,0.2484337,94231.0,94230.0,0.334236]
[1746451699892,0.0362,94231.0,94230.0,0.334236]
[1746451700182,0.2494337,94231.0,94230.0,0.334236]
[1746451700685,0.2464337,94231.0,94230.0,0.333236]
[1746451700892,0.2494337,94231.0,94230.0,0.334236]
[1746451701893,0.005,94231.0,94230.0,0.80116]
[1746451702780,0.003,94231.0,94230.0,0.80016]
[1746451702981,0.005,94231.0,94230.0,0.81160064]
[1746451703187,0.005,94231.0,94230.0,0.80116]
[1746451703990,0.005,94231.0,94230.0,0.8664]
[1746451704982,0.003,94231.0,94230.0,0.8654]
[1746451705180,0.005,94231.0,94230.0,0.760276]
[1746451706689,0.0365,94231.0,94230.0,0.760276]
[1746451708784,0.0365,94231.0,94230.0,0.791376]
[1746451711983,0.0335,94231.0,94230.0,0.790376]
[1746451712190,0.0365,94231.0,94230.0,0.822176]
[1746451713993,0.0355,94231.0,94230.0,0.821176]
[1746451714391,0.0335,94231.0,94230.0,0.820176]
[1746451714894,0.2457337,94231.0,94230.0,0.758276]
[1746451715701,0.0335,94231.0,94230.0,0.758276]
[1746451715901,0.2457337,94231.0,94230.0,0.758276]
[1746451716103,0.2781337,94231.0,94230.0,0.397476]
[1746451717002,0.0659,94231.0,94230.0,0.397476]
[1746451717203,0.0659,94231.0,94230.0,0.428176]
[1746451717403,0.0669,94231.0,94230.0,0.428176]
[1746451717914,0.0679,94231.0,94230.0,0.429176]
[1746451718599,0.0659,94231.0,94230.0,0.429176]
[1746451718798,0.0689,94231.0,94230.0,0.462276]
[1746451721512,0.0679,94231.0,94230.0,0.462276]
[1746451724615,0.0659,94231.0,94230.0,0.461276]
[1746451724818,0.0679,94231.0,94230.0,0.462276]
[1746451725620,0.0659,94231.0,94230.0,0.462276]
[1746451725809,0.0689,94231.0,94230.0,0.462276]
[1746451726520,0.0679,94231.0,94230.0,0.462276]
[1746451726723,0.0679,94231.0,94230.0,0.461876]
[1746451727114,0.0659,94231.0,94230.0,0.460876]
[1746451727418,0.0679,94231.0,94230.0,0.461876]
[1746451728518,0.0679,94231.0,94230.0,0.428776]
[1746451728815,0.2801337,94231.0,94230.0,0.398076]
[1746451729715,0.0679,94231.0,94230.0,0.398076]
[1746451730310,0.2781337,94231.0,94230.0,0.398076]
[1746451730516,0.0689,94231.0,94230.0,0.398076]
[1746451731616,0.0689,94231.0,94230.0,0.495376]
[1746451734916,0.0659,94231.0,94230.0,0.495376]
[1746451735115,0.0689,94231.0,94230.0,0.495376]
[1746451736728,0.005,94231.0,94230.0,0.495376]
[1746451736925,0.005,94231.0,94230.0,0.6015]
[1746451745622,0.005,94231.0,94230.0,0.398076]
[1746451746123,0.2172337,94231.0,94230.0,0.398076]
[1746451746424,0.005,94231.0,94230.0,0.398076]
[1746451746624,0.2172337,94231.0,94230.0,0.398076]
[1746451750832,0.005,94231.0,94230.0,0.398076]
[1746451752734,0.005,94231.0,94230.0,0.333236]
[1746451754330,0.2172337,94231.0,94230.0,0.333236]
[1746451755037,0.005,94231.0,94230.0,0.333236]
[1746451756127,0.2172337,94231.0,94230.0,0.333236]
[1746451756631,0.005,94231.0,94230.0,0.333236]
[1746451757438,0.0671,94231.0,94230.0,0.333236]
[1746451758534,0.2793337,94231.0,94230.0,0.333236]
[1746451760824,0.2793337,94231.0,94230.0,0.121]
[1746451761030,0.6401337,94231.0,94230.0,0.212236]
[1746451761225,0.6401337,94231.0,94230.0,0.332236]
[1746451762040,0.4279,94231.0,94230.0,0.332236]
[1746451762232,0.6401337,94231.0,94230.0,0.332236]
[1746451762426,0.4279,94231.0,94230.0,0.332236]
[1746451762634,0.6401337,94231.0,94230.0,0.332236]
[1746451763736,0.6401337,94231.0,94230.0,0.12]
[1746451763933,0.6401337,94231.0,94230.0,0.332236]
[1746451769243,1.0009337,94231.0,94230.0,0.332236]
[1746451770144,1.0009337,94231.0,94230.0,0.12]
[1746451770643,1.0009337,94231.0,94230.0,0.332236]
[1746451771743,1.0009337,94231.0,94230.0,0.12]
[1746451773440,1.0009337,94231.0,94230.0,0.332236]
[1746451773639,1.0009337,94231.0,94230.0,0.12]
[1746451780251,1.0009337,94231.0,94230.0,0.332236]
[1746451780454,1.0009337,94231.0,94230.0,0.12]
[1746451781646,1.0009337,94231.0,94230.0,0.332236]
[1746451783949,1.0009337,94231.0,94230.0,0.12]
[1746451785357,1.0009337,94231.0,94230.0,0.332236]
[1746451786755,1.0009337,94231.0,94230.0,0.12]
[1746451786959,0.9690337,94231.0,94230.0,0.332236]
[1746451787159,0.9690337,94231.0,94230.0,0.422536]
[1746451787351,1.0012337,94231.0,94230.0,0.422536]
[1746451789158,1.0012337,94231.0,94230.0,0.389436]
[1746451790158,1.0012337,94231.0,94230.0,0.1772]
[1746451790659,1.0012337,94231.0,94230.0,0.389436]
[1746451791666,1.0012337,94231.0,94230.0,0.12]
[1746451794560,1.0012337,94231.0,94230.0,0.332236]
[1746451794962,1.0012337,94231.0,94230.0,0.12]
[1746451801376,1.1073577,94231.0,94230.0,0.02429134]
[1746451802265,0.05306,94229.0,94226.0,0.0530612]
[1746451802470,0.2122427,94227.0,94226.0,0.2653039]
[1746451802772,0.2122427,94227.0,94226.0,0.2122427]
[1746451802971,0.276045,94227.0,94226.0,0.212245]
[1746451803266,0.0312,94227.0,94226.0,0.332245]
[1746451803463,0.0312,94227.0,94226.0,0.388745]
[1746451803769,0.2434427,94227.0,94226.0,0.12]
[1746451804471,0.2434427,94227.0,94226.0,0.0202]
[1746451804472,0.45569795,94227.0,94226.0,0.0202]
[1746451804969,0.52237795,94227.0,94226.0,0.0202]
[1746451805265,0.52237795,94227.0,94215.0,0.38700147]
[1746451805266,0.0530613,94226.0,94223.0,0.0530627]
[1746451805478,0.0530651,94220.0,94217.0,0.0530662]
[1746451805767,0.0309,94219.0,94218.0,0.058]
[1746451805961,0.3917,94219.0,94218.0,0.058]
[1746451806163,0.6039607,94219.0,94218.0,0.390263]
[1746451806668,0.6039607,94219.0,94218.0,0.12]
[1746451807363,0.77477671,94219.0,94218.0,0.12]